lending/lending_fUSD_20241214
["ID","MTS","AMOUNT","RATE_DAILY","PERIOD"]
[345313134,1734148256416,-500.0,0.00021199,3]
[345313135,1734148256426,-500.0,0.00021199,3]
[345313136,1734148256436,-1538.64,0.00021199,3]
[345313137,1734148256445,-1284.5,0.00021199,3]
[345313138,1734148256455,-500.0,0.00021199,3]
[345313139,1734148256464,-790.01,0.00021199,3]
[345313140,1734148256474,-500.0,0.00021199,3]
[345313141,1734148256484,-500.0,0.00021199,3]
[345313142,1734148256493,-500.0,0.00021199,3]
[345313143,1734148256502,-1729.84,0.00021199,3]
[345313144,1734148256511,-500.0,0.00021199,3]
[345313145,1734148256521,-684.12,0.00021199,3]
[345313146,1734148256531,-571.42,0.00021199,3]
[345313147,1734148256540,-500.0,0.00021199,3]
[345313148,1734148256549,-500.0,0.00021199,3]
[345313149,1734148256558,-500.0,0.00021199,3]
[345313150,1734148256568,-500.0,0.00021199,3]
[345313151,1734148256578,-591.74,0.00021199,3]
[345313152,1734148256587,-500.0,0.00021199,3]
[345313153,1734148256601,-1006.08,0.00021199,3]
[345313154,1734148256612,-500.0,0.00021199,3]
[345313155,1734148256622,-517.96,0.00021199,3]
[345313156,1734148256631,-500.0,0.00021199,3]
[345313157,1734148256641,-641.58,0.00021199,3]
[345313158,1734148256651,-500.0,0.00021199,3]
[345313159,1734148256661,-500.0,0.00021199,3]
[345313160,1734148256671,-500.0,0.00021199,3]
[345313161,1734148256680,-1719.9,0.00021199,3]
[345313162,1734148256690,-500.0,0.00021199,3]
[345313163,1734148256700,-500.0,0.00021199,3]
[345313164,1734148256709,-729.89,0.00021199,3]
[345313165,1734148256721,-500.0,0.00021199,3]
[345313166,1734148256731,-500.0,0.00021199,3]
[345313167,1734148256741,-500.0,0.00021199,3]
[345313168,1734148256752,-993.33,0.00021199,3]
[345313169,1734148256762,-500.0,0.00021199,3]
[345313170,1734148256771,-500.0,0.00021199,3]
[345313171,1734148256781,-639.34,0.00021199,3]
[345313172,1734148256791,-899.55,0.00021199,3]
[345313173,1734148256801,-1069.1,0.00021199,3]
[345313174,1734148256811,-500.0,0.00021199,3]
[345313175,1734148256820,-1130.34,0.00021199,3]
[345313176,1734148256830,-500.0,0.00021199,3]
[345313177,1734148256839,-526.04,0.00021199,3]
[345313178,1734148256850,-1147.29,0.00021199,3]
[345313179,1734148256860,-500.0,0.00021199,3]
[345313180,1734148256870,-523.52,0.00021199,3]
[345313181,1734148256880,-500.0,0.00021199,3]
[345313182,1734148256890,-500.0,0.00021199,3]
[345313183,1734148256899,-500.0,0.00021199,3]
[345313184,1734148256910,-500.0,0.00021199,3]
[345313185,1734148256919,-500.0,0.00021199,3]
[345313186,1734148256929,-579.64,0.00021199,3]
[345313187,1734148256939,-682.9,0.00021199,3]
[345313188,1734148256948,-500.0,0.00021199,3]
[345313189,1734148256958,-500.0,0.00021199,3]
[345313190,1734148256968,-500.0,0.00021199,3]
[345313191,1734148256978,-500.0,0.00021199,3]
[345313192,1734148256988,-500.0,0.00021199,3]
[345313193,1734148256998,-500.0,0.00021199,3]
[345313194,1734148257008,-660.32,0.00021199,3]
[345313195,1734148257018,-500.0,0.00021199,3]
[345313196,1734148257028,-1091.89,0.00021199,3]
[345313197,1734148257037,-500.0,0.00021199,3]
[345313198,1734148257047,-500.0,0.00021199,3]
[345313199,1734148257057,-500.0,0.00021199,3]
[345313200,1734148257066,-500.0,0.00021199,3]
[345313201,1734148257076,-500.0,0.00021199,3]
[345313202,1734148257085,-500.0,0.00021199,3]
[345313203,1734148257095,-500.0,0.00021199,3]
[345313204,1734148257104,-758.3,0.00021199,3]
[345313205,1734148257114,-500.0,0.00021199,3]
[345313206,1734148257124,-500.0,0.00021199,3]
[345313207,1734148257133,-500.0,0.00021199,3]
[345313208,1734148257143,-510.68,0.00021199,3]
[345313209,1734148257152,-500.0,0.00021199,3]
[345313210,1734148257161,-1000.0,0.00021199,2]
[345313211,1734148257171,-581.99291838,0.00021199,3]
[345313212,1734148257181,-912.02,0.00021199,3]
[345313213,1734148257191,-500.0,0.00021199,3]
[345313214,1734148257200,-500.0,0.00021199,3]
[345313215,1734148257209,-500.0,0.00021199,3]
[345313216,1734148257219,-500.0,0.00021199,3]
[345313217,1734148257228,-500.0,0.00021199,3]
[345313218,1734148257242,-500.0,0.00021199,3]
[345313219,1734148257251,-500.0,0.00021199,3]
[345313220,1734148257260,-500.0,0.00021199,3]
[345313221,1734148257270,-500.0,0.00021199,3]
[345313222,1734148257280,-1313.98,0.00021199,3]
[345313223,1734148257291,-500.0,0.00021199,3]
[345313224,1734148257300,-501.97118975,0.00021199,3]
[345313225,1734148257310,-851.55,0.00021199,3]
[345313226,1734148257320,-500.0,0.00021199,3]
[345313227,1734148257330,-500.0,0.00021199,3]
[345313228,1734148257340,-500.0,0.00021199,3]
[345313229,1734148257353,-500.0,0.00021199,3]
[345313230,1734148257362,-500.0,0.00021199,3]
[345313231,1734148257372,-500.0,0.00021199,3]
[345313232,1734148257382,-456.19766504,0.00021199,3]
[345313233,1734148257391,-857.21,0.00021199,3]
[345313234,1734148257400,-682.52,0.00021199,3]
[345313235,1734148257410,-500.0,0.00021199,3]
[345313236,1734148257420,-851.05,0.00021199,3]
[345313237,1734148257430,-500.0,0.00021199,3]
[345313238,1734148257440,-834.41,0.00021199,3]
[345313239,1734148257449,-500.0,0.00021199,3]
[345313240,1734148257459,-1185.66,0.00021199,3]
[345313241,1734148257469,-1337.89,0.00021199,3]
[345313242,1734148257478,-500.0,0.00021199,3]
[345313243,1734148257487,-1494.16,0.00021199,3]
[345313244,1734148257497,-500.0,0.00021199,3]
[345313245,1734148257507,-528.25,0.00021199,3]
[345313246,1734148257516,-807.76,0.00021199,3]
[345313247,1734148257525,-509.25585133,0.00021199,3]
[345313248,1734148257535,-500.0,0.00021199,3]
[345313249,1734148257544,-1332.04,0.00021199,3]
[345313250,1734148257554,-500.0,0.00021199,3]
[345313251,1734148257563,-500.0,0.00021199,3]
[345313252,1734148257572,-500.0,0.00021199,3]
[345313253,1734148257581,-918.02,0.00021199,3]
[345313254,1734148257679,-500.0,0.00021199,3]
[345313255,1734148257698,-623.31,0.00021199,3]
[345313256,1734148257707,-1136.28,0.00021199,3]
[345313257,1734148257717,-500.0,0.00021199,3]
[345313258,1734148257726,-925.13,0.00021199,3]
[345313259,1734148257736,-805.1,0.00021199,3]
[345313260,1734148257746,-500.0,0.00021199,3]
[345313261,1734148257755,-500.0,0.00021199,3]
[345313262,1734148257764,-500.0,0.00021199,3]
[345313263,1734148257774,-500.0,0.00021199,3]
[345313264,1734148257784,-500.0,0.00021199,3]
[345313265,1734148257794,-623.22,0.00021199,3]
[345313266,1734148257803,-927.93,0.00021199,3]
[345313267,1734148257813,-591.78,0.00021199,3]
[345313268,1734148257822,-1048.76,0.00021199,3]
[345313269,1734148257832,-500.0,0.00021199,3]
[345313270,1734148257842,-1260.7,0.00021199,3]
[345313271,1734148257853,-2004.492113,0.00021199,3]
[345313272,1734148257863,-500.0,0.00021199,3]
[345313273,1734148257872,-3138.953135,0.00021199,3]
[345313274,1734148257881,-983.12,0.00021199,3]
[345313275,1734148257891,-500.0,0.00021199,3]
[345313276,1734148257900,-1220.74,0.00021199,3]
[345313277,1734148257911,-1172.85,0.00021199,3]
[345313278,1734148257920,-521.62,0.00021199,3]
[345313279,1734148257929,-1779.66,0.00021199,3]
[345313280,1734148257939,-500.0,0.00021199,3]
[345313281,1734148257948,-1215.42,0.00021199,3]
[345313282,1734148257958,-584.36,0.00021199,3]
[345313283,1734148257967,-616.02,0.00021199,3]
[345313284,1734148257976,-513.13,0.00021199,3]
[345313285,1734148257985,-1411.06,0.00021199,3]
[345313286,1734148257996,-302.10537827,0.00021199,3]
[345313287,1734148258006,-500.0,0.00021199,3]
[345313288,1734148258015,-2130.49,0.00021199,3]
[345313289,1734148258025,-500.0,0.00021199,3]
[345313290,1734148258036,-1315.86,0.00021199,3]
[345313291,1734148258045,-5011.5007664,0.00021199,3]
[345313292,1734148258054,-500.0,0.00021199,3]
[345313293,1734148258063,-500.0,0.00021199,3]
[345313294,1734148258072,-500.0,0.00021199,3]
[345313295,1734148258083,-527.1,0.00021199,3]
[345313296,1734148258094,-604.81,0.00021199,3]
[345313297,1734148258104,-727.54,0.00021199,3]
[345313298,1734148258113,-500.0,0.00021199,3]
[345313299,1734148258122,-500.0,0.00021199,3]
[345313300,1734148258131,-580.35,0.00021199,3]
[345313301,1734148258140,-500.0,0.00021199,3]
[345313302,1734148258150,-500.0,0.00021199,3]
[345313303,1734148258159,-500.0,0.00021199,3]
[345313304,1734148258170,-500.0,0.00021199,3]
[345313305,1734148258179,-500.0,0.00021199,3]
[345313306,1734148258189,-564.03,0.00021199,3]
[345313307,1734148258199,-500.0,0.00021199,3]
[345313308,1734148258208,-500.0,0.00021199,3]
[345313309,1734148258218,-1534.38,0.00021199,3]
[345313310,1734148258228,-500.0,0.00021199,3]
[345313311,1734148258243,-367.41,0.00021199,3]
[345313312,1734148258252,-1713.08,0.00021199,3]
[345313313,1734148258262,-1283.33,0.00021199,3]
[345313314,1734148258271,-1421.7,0.00021199,3]
[345313315,1734148258282,-500.0,0.00021199,3]
[345313316,1734148258291,-1609.72,0.00021199,3]
[345313317,1734148258301,-500.0,0.00021199,3]
[345313318,1734148258312,-1824.73,0.00021199,3]
[345313319,1734148258322,-912.87,0.00021199,3]
[345313320,1734148258331,-500.0,0.00021199,3]
[345313321,1734148258340,-699.88,0.00021199,3]
[345313322,1734148258354,-797.68,0.00021199,3]
[345313323,1734148258373,-626.98,0.00021199,3]
[345313324,1734148258391,-518.58,0.00021199,3]
[345313325,1734148258410,-805.48,0.00021199,3]
[345313326,1734148258426,-525.7,0.00021199,3]
[345313327,1734148258443,-500.0,0.00021199,3]
[345313328,1734148258462,-1570.78,0.00021199,3]
[345313329,1734148258480,-744.77,0.00021199,3]
[345313330,1734148258499,-500.0,0.00021199,3]
[345313331,1734148258517,-500.0,0.00021199,3]
[345313332,1734148258535,-1003.15,0.00021199,3]
[345313333,1734148258549,-801.86,0.00021199,3]
[345313334,1734148258568,-586.39,0.00021199,3]
[345313335,1734148258582,-500.0,0.00021199,3]
[345313336,1734148258599,-1177.36,0.00021199,3]
[345313337,1734148258614,-500.0,0.00021199,3]
[345313338,1734148258630,-886.91,0.00021199,3]
[345313339,1734148258645,-705.62,0.00021199,3]
[345313340,1734148258661,-500.0,0.00021199,3]
[345313341,1734148258678,-500.0,0.00021199,3]
[345313342,1734148258694,-3033.11,0.00021199,3]
[345313343,1734148258708,-4820.48,0.00021199,3]
[345313344,1734148258724,-679.58,0.00021199,3]
[345313345,1734148258740,-698.96,0.00021199,3]
[345313346,1734148258756,-1169.1,0.00021199,3]
[345313347,1734148258771,-500.0,0.00021199,3]
[345313348,1734148258787,-500.0,0.00021199,3]
[345313349,1734148258802,-500.0,0.00021199,3]
[345313350,1734148258818,-500.0,0.00021199,3]
[345313351,1734148258833,-876.35,0.00021199,3]
[345313352,1734148258853,-3269.21,0.00021199,3]
[345313353,1734148258870,-500.0,0.00021199,3]
[345313354,1734148258884,-500.0,0.00021199,3]
[345313355,1734148258901,-507.16,0.00021199,3]
[345313356,1734148258917,-500.0,0.00021199,3]
[345313357,1734148258934,-792.76,0.00021199,3]
[345313358,1734148258949,-2716.62,0.00021199,3]
[345313359,1734148258964,-500.0,0.00021199,3]
[345313360,1734148258980,-507.89,0.00021199,3]
[345313361,1734148258995,-500.0,0.00021199,3]
[345313362,1734148259010,-481.11067614,0.00021199,3]
[345313363,1734148259025,-983.68,0.00021199,3]
[345313364,1734148259039,-610.47,0.00021199,3]
[345313365,1734148259054,-834.45,0.00021199,3]
[345313366,1734148259070,-500.0,0.00021199,3]
[345313367,1734148259085,-500.0,0.00021199,3]
[345313368,1734148259100,-518.86,0.00021199,3]
[345313369,1734148259116,-500.0,0.00021199,3]
[345313370,1734148259132,-500.0,0.00021199,3]
[345313371,1734148259147,-785.26,0.00021199,3]
[345313372,1734148259163,-572.26,0.00021199,3]
[345313373,1734148259179,-500.0,0.00021199,3]
[345313374,1734148259194,-500.0,0.00021199,3]
[345313375,1734148259210,-500.0,0.00021199,3]
[345313376,1734148259224,-500.0,0.00021199,3]
[345313377,1734148259242,-523.42,0.00021199,3]
[345313378,1734148259258,-502.71097239,0.00021199,3]
[345313379,1734148259272,-500.0,0.00021199,3]
[345313380,1734148259293,-500.0,0.00021199,3]
[345313381,1734148259314,-500.0,0.00021199,3]
[345313382,1734148259333,-1000.04,0.00021199,3]
[345313383,1734148259354,-500.0,0.00021199,3]
[345313384,1734148259370,-3441.94,0.00021199,3]
[345313385,1734148259388,-500.0,0.00021199,3]
[345313386,1734148259403,-649.24405128,0.00021199,3]
[345313387,1734148259421,-8606.71,0.00021199,3]
[345313388,1734148259436,-500.0,0.00021199,3]
[345313389,1734148259451,-542.65,0.00021199,3]
[345313390,1734148259605,-500.0,0.00021199,3]
[345313391,1734148259615,-1104.35,0.00021199,3]
[345313392,1734148259625,-749.86,0.00021199,3]
[345313393,1734148259635,-500.0,0.00021199,3]
[345313394,1734148259645,-533.94,0.00021199,3]
[345313395,1734148259655,-500.0,0.00021199,3]
[345313396,1734148259665,-702.38,0.00021199,3]
[345313397,1734148259675,-500.0,0.00021199,3]
[345313398,1734148259684,-500.0,0.00021199,3]
[345313399,1734148259694,-500.0,0.00021199,3]
[345313400,1734148259704,-660.16,0.00021199,3]
[345313401,1734148259714,-2510.62,0.00021199,3]
[345313402,1734148259724,-2025.2,0.00021199,3]
[345313403,1734148259733,-502.23965395,0.00021199,3]
[345313404,1734148259743,-500.0,0.00021199,3]
[345313405,1734148259752,-1542.95,0.00021199,3]
[345313406,1734148259762,-500.0,0.00021199,3]
[345313407,1734148259771,-1822.61,0.00021199,3]
[345313408,1734148259781,-718.03,0.00021199,3]
[345313409,1734148259791,-500.0,0.00021199,3]
[345313410,1734148259801,-505.75367434,0.00021199,3]
[345313411,1734148259811,-347.18838428,0.00021199,3]
[345313412,1734148259821,-500.0,0.00021199,3]
[345313413,1734148259831,-594.04,0.00021199,3]
[345313414,1734148259840,-500.0,0.00021199,3]
[345313415,1734148259852,-1118.3,0.00021199,3]
[345313416,1734148259867,-500.0,0.00021199,3]
[345313417,1734148259876,-500.0,0.00021199,3]
[345313418,1734148259886,-500.0,0.00021199,3]
[345313419,1734148259896,-1809.76,0.00021199,3]
[345313420,1734148259906,-1351.53,0.00021199,3]
[345313421,1734148259916,-164658.3389261,0.000212,2]
[345313422,1734148259926,-561.36,0.000212,2]
[345313423,1734148259936,-528.0,0.000212,9]
[345313424,1734148259945,-230.0,0.000212,2]
[345313425,1734148259955,-979.7954,0.000212,2]
[345313426,1734148259965,-979.7954,0.000212,2]
[345313427,1734148259975,-972.3,0.000212,2]
[345313428,1734148259984,-150.0,0.00021209,2]
[345313429,1734148259994,-150.0,0.00021222,2]
[345313430,1734148260004,-150.0,0.00021231,2]
[345313431,1734148260015,-904.24,0.00021231,3]
[345313432,1734148260024,-500.0,0.00021231,3]
[345313433,1734148260034,-2217.52,0.00021231,3]
[345313434,1734148260045,-800.51,0.00021231,3]
[345313435,1734148260055,-626.68,0.00021231,3]
[345313436,1734148260065,-991.24,0.00021231,3]
[345313437,1734148260075,-500.0,0.00021231,3]
[345313438,1734148260085,-631.52,0.00021231,3]
[345313439,1734148260095,-500.0,0.00021231,3]
[345313440,1734148260106,-500.0,0.00021231,3]
[345313441,1734148260116,-500.0,0.00021231,3]
[345313442,1734148260126,-500.0,0.00021232,3]
[345313443,1734148260136,-1447.72,0.00021232,3]
[345313444,1734148260146,-3250.34,0.00021232,3]
[345313445,1734148260156,-1794.1,0.00021232,3]
[345313446,1734148260166,-500.0,0.00021232,3]
[345313447,1734148260175,-500.0,0.00021232,3]
[345313448,1734148260184,-2474.67,0.00021232,3]
[345313449,1734148260194,-8334.97,0.00021232,3]
[345313450,1734148260205,-500.0,0.00021232,3]
[345313451,1734148260214,-1526.56,0.00021232,3]
[345313452,1734148260224,-500.0,0.00021232,3]
[345313453,1734148260238,-698.24,0.00021232,3]
[345313454,1734148260248,-898.46,0.00021232,3]
[345313455,1734148260258,-733.29,0.00021232,3]
[345313456,1734148260268,-1000.0,0.00021232,3]
[345313457,1734148260279,-581.21,0.00021232,3]
[345313458,1734148260289,-500.0,0.00021232,3]
[345313459,1734148260299,-2854.35,0.00021232,3]
[345313460,1734148260309,-983.34,0.00021232,3]
[345313461,1734148260319,-1401.0,0.00021233,2]
[345313462,1734148260329,-150.0,0.00021234,2]
[345313463,1734148260339,-169.914015,0.00021237,2]
[345313464,1734148260350,-201.0,0.0002124,2]
[345313465,1734148260360,-205.0,0.0002124,2]
[345313466,1734148260369,-211.0,0.0002124,2]
[345313467,1734148260379,-206.0,0.0002124,2]
[345313468,1734148260390,-500.0,0.00021245,3]
[345313469,1734148260400,-500.0,0.00021245,3]
[345313470,1734148260411,-500.0,0.00021245,3]
[345313471,1734148260421,-500.0,0.00021245,3]
[345313472,1734148260431,-500.0,0.00021245,3]
[345313473,1734148260441,-500.0,0.00021245,3]
[345313474,1734148260451,-500.0,0.00021245,3]
[345313475,1734148260461,-270.87107879,0.00021245,3]
[345313476,1734148260471,-500.0,0.00021245,3]
[345313477,1734148260481,-500.0,0.00021245,3]
[345313478,1734148260491,-500.0,0.00021245,3]
[345313479,1734148260502,-500.0,0.00021245,3]
[345313480,1734148260512,-500.0,0.00021245,3]
[345313481,1734148260522,-500.0,0.00021245,3]
[345313482,1734148260532,-500.0,0.00021245,3]
[345313483,1734148260542,-500.0,0.00021245,3]
[345313484,1734148260551,-500.0,0.00021245,3]
[345313485,1734148260561,-1234.82,0.00021245,3]
[345313486,1734148260570,-500.0,0.00021245,3]
[345313487,1734148260581,-500.0,0.00021245,3]
[345313488,1734148260591,-500.0,0.00021245,3]
[345313489,1734148260603,-500.0,0.00021245,3]
[345313490,1734148260613,-500.0,0.00021245,3]
[345313491,1734148260623,-500.0,0.00021245,3]
[345313492,1734148260633,-1914.86,0.00021245,3]
[345313493,1734148260643,-500.0,0.00021245,3]
[345313494,1734148260652,-500.0,0.00021245,3]
[345313495,1734148260661,-500.0,0.00021245,3]
[345313496,1734148260671,-613.77,0.00021245,3]
[345313497,1734148260681,-500.0,0.00021245,3]
[345313498,1734148260691,-868.61,0.00021245,3]
[345313499,1734148260701,-500.0,0.00021245,3]
[345313500,1734148260710,-500.0,0.00021245,3]
[345313501,1734148260720,-1482.19,0.00021245,3]
[345313502,1734148260731,-500.0,0.00021245,3]
[345313503,1734148260741,-500.0,0.00021245,3]
[345313504,1734148260752,-500.0,0.00021245,3]
[345313505,1734148260762,-968.11,0.00021245,3]
[345313506,1734148260771,-500.0,0.00021245,3]
[345313507,1734148260781,-500.0,0.00021245,3]
[345313508,1734148260791,-2123.76,0.00021245,3]
[345313509,1734148260800,-500.0,0.00021245,3]
[345313510,1734148260810,-1537.43,0.00021245,3]
[345313511,1734148260820,-500.0,0.00021245,3]
[345313512,1734148260829,-500.0,0.00021245,3]
[345313513,1734148260839,-500.0,0.00021245,3]
[345313514,1734148260849,-1228.93,0.00021245,3]
[345313515,1734148260858,-500.0,0.00021245,3]
[345313516,1734148260868,-500.0,0.00021245,3]
[345313517,1734148260878,-6024.13,0.00021245,3]
[345313518,1734148260887,-500.0,0.00021245,3]
[345313519,1734148260897,-934.24,0.00021245,3]
[345313520,1734148260907,-849.5,0.00021245,3]
[345313521,1734148260916,-661.6,0.00021245,3]
[345313522,1734148260926,-500.0,0.00021245,3]
[345313523,1734148260937,-500.0,0.00021245,3]
[345313524,1734148260947,-1099.36,0.00021245,3]
[345313525,1734148260957,-500.0,0.00021245,3]
[345313526,1734148260968,-1237.0,0.00021245,3]
[345313527,1734148260977,-500.0,0.00021245,3]
[345313528,1734148260987,-500.0,0.00021245,3]
[345313529,1734148260996,-500.0,0.00021245,3]
[345313530,1734148261006,-500.0,0.00021245,3]
[345313531,1734148261016,-500.0,0.00021245,3]
[345313532,1734148261026,-1162.26,0.00021245,3]
[345313533,1734148261035,-500.0,0.00021245,3]
[345313534,1734148261044,-500.0,0.00021245,3]
[345313535,1734148261054,-500.0,0.00021245,3]
[345313536,1734148261064,-500.0,0.00021245,3]
[345313537,1734148261073,-1070.14,0.00021245,3]
[345313538,1734148261083,-200.0,0.00021245,2]
[345313539,1734148261093,-200.0,0.00021245,2]
[345313540,1734148261196,-1240.2789585,0.00021246,2]
[345313541,1734148261206,-1354.8414068,0.00021246,2]
[345313542,1734148261215,-1469.4038552,0.00021246,2]
[345313543,1734148261224,-1583.9663035,0.00021246,2]
[345313544,1734148261237,-1698.5287519,0.00021246,2]
[345313545,1734148261247,-1813.0912003,0.00021246,2]
[345313546,1734148261255,-2004.492113,0.00021246,3]
[345313547,1734148261265,-3138.953135,0.00021246,3]
[345313548,1734148261277,-1220.74,0.00021246,3]
[345313549,1734148261286,-584.36,0.00021246,3]
[345313550,1734148261296,-500.0,0.00021246,3]
[345313551,1734148261306,-1534.38,0.00021246,3]
[345313552,1734148261317,-1283.33,0.00021246,3]
[345313553,1734148261327,-912.87,0.00021246,3]
[345313554,1734148261337,-699.88,0.00021246,3]
[345313555,1734148261347,-805.48,0.00021246,3]
[345313556,1734148261357,-500.0,0.00021246,3]
[345313557,1734148261367,-1003.15,0.00021246,3]
[345313558,1734148261376,-586.39,0.00021246,3]
[345313559,1734148261385,-10574.6432468,0.00021246,2]
[345313560,1734148261395,-10607.0363499,0.00021246,2]
[345313561,1734148261404,-10639.4294529,0.00021246,2]
[345313562,1734148261414,-10671.822556,0.00021246,2]
[345313563,1734148261423,-10704.215659,0.00021246,2]
[345313564,1734148261433,-10736.6087621,0.00021246,2]
[345313565,1734148261443,-904.24,0.00021246,3]
[345313566,1734148261452,-904.24,0.00021246,3]
[345313567,1734148261462,-4820.48,0.00021246,3]
[345313568,1734148261472,-698.96,0.00021246,3]
[345313569,1734148261482,-500.0,0.00021246,3]
[345313570,1734148261492,-876.35,0.00021246,3]
[345313571,1734148261502,-500.0,0.00021246,3]
[345313572,1734148261511,-500.0,0.00021246,3]
[345313573,1734148261521,-500.0,0.00021246,3]
[345313574,1734148261531,-500.0,0.00021246,3]
[345313575,1734148261541,-2217.52,0.00021246,3]
[345313576,1734148261551,-2217.52,0.00021246,3]
[345313577,1734148261561,-983.68,0.00021246,3]
[345313578,1734148261570,-834.45,0.00021246,3]
[345313579,1734148261580,-800.51,0.00021246,3]
[345313580,1734148261590,-800.51,0.00021246,3]
[345313581,1734148261600,-500.0,0.00021246,3]
[345313582,1734148261610,-626.68,0.00021246,3]
[345313583,1734148261620,-626.68,0.00021246,3]
[345313584,1734148261630,-523.42,0.00021246,3]
[345313585,1734148261639,-991.24,0.00021246,3]
[345313586,1734148261649,-991.24,0.00021246,3]
[345313587,1734148261658,-3441.94,0.00021246,3]
[345313588,1734148261667,-8606.71,0.00021246,3]
[345313589,1734148261677,-542.65,0.00021246,3]
[345313590,1734148261687,-702.38,0.00021246,3]
[345313591,1734148261696,-500.0,0.00021246,3]
[345313592,1734148261706,-500.0,0.00021246,3]
[345313593,1734148261715,-2510.62,0.00021246,3]
[345313594,1734148261725,-631.52,0.00021246,3]
[345313595,1734148261735,-631.52,0.00021246,3]
[345313596,1734148261745,-500.0,0.00021246,3]
[345313597,1734148261754,-500.0,0.00021246,3]
[345313598,1734148261764,-718.03,0.00021246,3]
[345313599,1734148261774,-500.0,0.00021246,3]
[345313600,1734148261784,-500.0,0.00021246,3]
[345313601,1734148261795,-500.0,0.00021246,3]
[345313602,1734148261804,-335.26726484,0.00021246,3]
[345313603,1734148261815,-2399.2136382,0.00021246,2]
[345313604,1734148261825,-2421.8060287,0.00021246,2]
[345313605,1734148261835,-2444.3984191,0.00021246,2]
[345313606,1734148261844,-2466.9908096,0.00021246,2]
[345313607,1734148261855,-2489.5832,0.00021246,2]
[345313608,1734148261865,-2512.1755905,0.00021246,2]
[345313609,1734148261875,-1809.76,0.00021246,3]
[345313610,1734148261885,-500.0,0.00021246,3]
[345313611,1734148261895,-500.0,0.00021247,2]
[345313612,1734148261905,-500.0,0.00021247,3]
[345313613,1734148261915,-500.0,0.00021247,3]
[345313614,1734148261925,-500.0,0.00021247,3]
[345313615,1734148261935,-550.65,0.00021247,3]
[345313616,1734148261944,-580.29,0.00021247,3]
[345313617,1734148261954,-571.06,0.00021247,3]
[345313618,1734148261963,-500.0,0.00021247,3]
[345313619,1734148261973,-500.0,0.00021247,3]
[345313620,1734148261983,-500.0,0.00021247,3]
[345313621,1734148261993,-514.9,0.00021247,3]
[345313622,1734148262003,-500.0,0.00021247,3]
[345313623,1734148262013,-500.0,0.00021247,3]
[345313624,1734148262026,-1392.78,0.00021247,3]
[345313625,1734148262036,-517.21,0.00021247,3]
[345313626,1734148262046,-301.42975151,0.00021247,3]
[345313627,1734148262055,-500.0,0.00021247,3]
[345313628,1734148262065,-473.8155798,0.00021247,3]
[345313629,1734148262075,-500.0,0.00021247,3]
[345313630,1734148262084,-1284.5,0.00021247,3]
[345313631,1734148262093,-790.01,0.00021247,3]
[345313632,1734148262105,-500.0,0.00021247,3]
[345313633,1734148262117,-684.12,0.00021247,3]